fUST/lending_fUST_20251116
["ID","MTS","AMOUNT","RATE_DAILY","PERIOD"]
[394104422,1763285300911,-500.0,0.00015507,2]
[394104423,1763285300942,-500.0,0.00015507,2]
[394104424,1763285300973,-500.0,0.00015507,2]
[394104425,1763285301002,-500.0,0.00015507,2]
[394104426,1763285301032,-500.0,0.00015507,2]
[394104427,1763285301061,-500.0,0.00015507,2]
[394104428,1763285301156,-500.0,0.00015507,2]
[394104429,1763285301186,-500.0,0.00015507,2]
[394104430,1763285301217,-500.0,0.00015507,2]
[394104431,1763285301248,-500.0,0.00015507,2]
[394104432,1763285301278,-500.0,0.00015507,2]
[394104433,1763285301396,-500.0,0.00015507,2]
[394104434,1763285301427,-500.0,0.00015507,2]
[394104435,1763285301458,-500.0,0.00015507,2]
[394104436,1763285301489,-500.0,0.00015507,2]
[394104437,1763285301521,-500.0,0.00015507,2]
[394104438,1763285301605,-500.0,0.00015507,2]
[394104439,1763285301636,-500.0,0.00015507,2]
[394104440,1763285301667,-500.0,0.00015507,2]
[394104441,1763285301700,-500.0,0.00015507,2]
[394104442,1763285301731,-500.0,0.00015507,2]
[394104443,1763285301762,-500.0,0.00015507,2]
[394104444,1763285301794,-500.0,0.00015507,2]
[394104445,1763285301824,-375.05403717,0.00015507,2]
[394104446,1763285301853,-163.37,0.00015509,2]
[394104447,1763285301879,-500.0,0.00015511,2]
[394104448,1763285301908,-172.65191105,0.00015511,2]
[394104449,1763285301935,-151.0,0.00015511,2]
[394104450,1763285301963,-102.86649409,0.00015511,2]
[394104451,1763285302050,-70.12511538,0.00015511,2]
[394104452,1763285302077,-151.0,0.00015511,2]
[394104453,1763285302104,-154.41708032,0.00015511,2]
[394104454,1763285302132,-151.0,0.00015511,2]
[394104455,1763285302159,-776.15,0.00015511,2]
[394104456,1763285302186,-776.15,0.00015511,2]
[394104457,1763285302214,-776.15,0.00015511,2]
[394104458,1763285302242,-776.15,0.00015511,2]
[394104459,1763285302270,-776.15,0.00015511,2]
[394104460,1763285302298,-409.2756086,0.00015511,2]
[394104461,1763285302394,-366.8743914,0.00015511,2]
[394104462,1763285302422,-776.15,0.00015511,2]
[394104463,1763285302451,-776.15,0.00015511,2]
[394104464,1763285302480,-776.15,0.00015511,2]
[394104465,1763285302508,-776.15,0.00015511,2]
[394104466,1763285302536,-776.15,0.00015511,2]
[394104467,1763285302563,-728.6112172,0.00015511,2]
[394104468,1763285303831,-47.5387828,0.00015511,2]
[394104469,1763285303841,-470.3356086,0.00015511,2]
[394104470,1763285306384,-305.8143914,0.00015511,2]
[394104471,1763285306413,-776.15,0.00015511,2]
[394104472,1763285306522,-776.15,0.00015511,2]
[394104473,1763285306549,-776.15,0.00015511,2]
[394104474,1763285306577,-776.15,0.00015511,2]
[394104475,1763285306605,-776.15,0.00015511,2]
[394104476,1763285306633,-776.15,0.00015511,2]
[394104477,1763285306733,-776.15,0.00015511,2]
[394104478,1763285306762,-776.15,0.00015511,2]
[394104479,1763285306792,-776.15,0.00015511,2]
[394104480,1763285306820,-776.37188974,0.00015511,2]
[394104481,1763285306847,-1000.0,0.00015511,2]
[394104482,1763285306875,-460.05,0.00015511,2]
[394104483,1763285306973,-5000.0,0.00015511,2]
[394104484,1763285307048,-182.67905001,0.00015511,2]
[394104485,1763285307075,-200.0,0.00015511,2]
[394104486,1763285307769,9234.65189998,0.00015356,2]
[394104487,1763285307803,5810.80877256,0.00015356,2]
[394104488,1763285308389,1188.56834342,0.00015473,2]
[394104489,1763285315737,3000.63288402,0.00015512,2]
[394104490,1763285321362,-1999.36711598,0.00015512,2]
[394104491,1763285327662,-6766.63386806,0.00015357,2]
[394104492,1763285327791,-10000.01,0.00015357,2]
[394104493,1763285327904,-2689.55785789,0.00015357,2]
[394104494,1763285327930,-4620.89428422,0.00015357,2]
[394104495,1763285330692,-10000.01,0.00015512,2]
[394104496,1763285330903,-10000.01,0.00015512,2]
[394104497,1763285336657,-4599.4346449,0.00015357,2]
[394104498,1763285336681,-801.1407102,0.00015357,2]
[394104499,1763285336781,-10000.01,0.00015512,2]
[394104500,1763285339736,-10000.01,0.00015357,2]
[394104501,1763285339859,-10000.01,0.00015357,2]
[394104502,1763285339972,-10000.01,0.00015357,2]
[394104503,1763285342940,-10000.01,0.00015357,2]
[394104504,1763285343129,-10000.01,0.00015357,2]
[394104505,1763285343233,-10000.01,0.00015357,2]
[394104506,1763285343417,-10000.01,0.00015357,2]
[394104507,1763285343587,-300.0,0.00015356,2]
[394104508,1763285343625,-9400.01,0.00015357,2]
[394104509,1763285343692,-10000.01,0.00015357,2]
[394104510,1763285343791,-10000.01,0.00015357,2]
[394104511,1763285345912,-10000.01,0.00015357,2]
[394104512,1763285346085,-10000.01,0.00015357,2]
[394104513,1763285348971,-1103.40481864,0.00015357,2]
[394104514,1763285348994,-7793.20036272,0.00015357,2]
[394104516,1763285350583,150.0,0.00032874,120]
[394104517,1763285376577,465.54240057,0.00018331,7]
[394104628,1763285438107,-500.0,0.00015083,2]
[394104630,1763285438116,-281.5533925,0.00015256,2]
[394104632,1763285438126,-1200.0,0.00015356,2]
[394104634,1763285438135,-8885.01480791,0.00015357,2]
[394104636,1763285438144,-316.23782907,0.00015416,2]
[394104638,1763285438154,-151.0,0.00015503,2]
[394104640,1763285438164,-151.0,0.00015503,2]
[394104642,1763285438173,-151.0,0.00015503,2]
[394104644,1763285438183,-151.0,0.00015503,2]
[394104646,1763285438192,-151.0,0.00015503,2]
[394104648,1763285438201,-151.0,0.00015503,2]
[394104650,1763285438211,-151.0,0.00015503,2]
[394104652,1763285438221,-151.0,0.00015503,2]
[394104654,1763285438230,-151.0,0.00015503,2]
[394104656,1763285438240,-151.0,0.00015503,2]
[394104658,1763285438249,-151.0,0.00015503,2]
[394104660,1763285438258,-300.0,0.0001551,2]
[394104662,1763285438267,-300.0,0.0001551,2]
[394104664,1763285438277,-300.0,0.0001551,2]
[394104666,1763285438287,-500.0,0.0001551,2]
[394104668,1763285438296,-500.0,0.0001551,2]
[394104670,1763285438305,-500.0,0.0001551,2]
[394104672,1763285438315,-500.0,0.0001551,2]
[394104674,1763285438324,-500.0,0.0001551,2]
[394104676,1763285438334,-500.0,0.0001551,2]
[394104678,1763285438343,-500.0,0.0001551,2]
[394104680,1763285438353,-500.0,0.0001551,2]
[394104682,1763285438363,-500.0,0.0001551,2]
[394104684,1763285438372,-500.0,0.0001551,2]
[394104686,1763285438381,-500.0,0.0001551,2]
[394104688,1763285438391,-500.0,0.0001551,2]
[394104690,1763285438400,-500.0,0.0001551,2]
[394104692,1763285438409,-500.0,0.0001551,2]
[394104694,1763285438419,-500.0,0.0001551,2]
[394104696,1763285438428,-369.51425866,0.0001551,2]
[394104698,1763285438438,-500.0,0.0001551,2]
[394104700,1763285438447,-500.0,0.0001551,2]
[394104702,1763285438456,-500.0,0.0001551,2]
[394104704,1763285438466,-500.0,0.0001551,2]
[394104706,1763285438475,-500.0,0.0001551,2]
[394104708,1763285438484,-500.0,0.0001551,2]
[394104710,1763285438494,-500.0,0.0001551,2]
[394104712,1763285438503,-500.0,0.0001551,2]
[394104714,1763285438513,-500.0,0.0001551,2]
[394104716,1763285438523,-492.38052311,0.0001551,2]
[394104718,1763285438532,-500.0,0.0001551,2]
[394104720,1763285438541,-500.0,0.0001551,2]
[394104722,1763285438551,-214.0638178,0.0001551,2]
[394104724,1763285438560,-500.0,0.0001551,2]
[394104726,1763285438569,-500.0,0.0001551,2]
[394104728,1763285438579,-500.0,0.0001551,2]
[394104730,1763285438588,-500.0,0.0001551,2]
[394104732,1763285438598,-500.0,0.0001551,2]
[394104734,1763285438607,-500.0,0.0001551,2]
[394104736,1763285438617,-500.0,0.0001551,2]
[394104738,1763285438627,-500.0,0.0001551,2]
[394104740,1763285438636,-500.0,0.0001551,2]
[394104742,1763285438646,-500.0,0.0001551,2]
[394104743,1763285438656,-500.0,0.0001551,2]
[394104745,1763285438665,-500.0,0.0001551,2]
[394104747,1763285438677,-500.0,0.0001551,2]
[394104750,1763285438687,-500.0,0.0001551,2]
[394104751,1763285438696,-500.0,0.0001551,2]
[394104753,1763285438706,-500.0,0.0001551,2]
[394104755,1763285438715,-500.0,0.0001551,2]
[394104758,1763285438725,-500.0,0.00015511,2]
[394104759,1763285438734,-500.0,0.00015511,2]
[394104761,1763285438747,-66153.19611568,0.00015512,2]
[394105181,1763285443540,-338.8719559,0.00015512,2]
[394105184,1763285443551,-145432.31772602,0.00015512,2]
[394105460,1763285509767,169.75467216,0.00014408,2]
[394105461,1763285513409,-306.98657716,0.00014408,2]
[394105462,1763285516131,-220.00048767,0.00014408,2]
[394105463,1763285518573,-179.75080008,0.00014408,2]
[394105472,1763285549657,703.83963595,0.00018414,7]
[394105477,1763285617894,336.0,0.0001865,3]
[394105478,1763285647552,-196.58921793,0.00014264,2]
[394105479,1763285647573,-136.91299079,0.00014327,2]
[394105480,1763285648713,196.58921793,0.00014121,2]
[394105481,1763285649769,-173.21374517,0.00014327,2]
[394105482,1763285651900,-286.28928722,0.00014327,2]
[394105483,1763285653730,-204.98478072,0.00014327,2]
[394105484,1763285653752,-85.33588695,0.00014408,2]
[394105485,1763285687160,251.50891033,0.00018373,7]
[394105486,1763285718609,211.8912201,0.00014172,2]
[394105487,1763285719212,-211.8912201,0.00014315,2]
[394105488,1763285719233,-50.19467829,0.00014408,2]
[394105489,1763285943706,1314.0,0.00032877,120]
[394105491,1763285958732,775.981272,0.00013699,2]
[394105492,1763285959489,-462.50658697,0.0001432,2]
[394105493,1763285961350,-307.29441956,0.0001432,2]
[394105494,1763285964969,-135.56378797,0.0001432,2]
[394105495,1763285964993,-61.05865269,0.00014408,2]
[394105496,1763285965015,-130.16381417,0.00014607,2]
[394105497,1763285977442,-67.23167525,0.00014607,2]
[394105498,1763285977462,-245.85990348,0.00014694,2]
[394105499,1763286047396,856.34,0.00014684,2]
[394105504,1763286074670,856.34,0.00014684,2]
[394105505,1763286087460,2000.0,0.00032877,120]
[394105507,1763286155422,153.183526,0.00018132,5]
[394105508,1763286155849,153.183526,0.00018006,7]
[394105509,1763286161653,2001.0,0.00032877,120]
[394105510,1763286172180,485.4295568,0.00014343,2]
[394105513,1763286200986,320.526691,0.00014594,2]
[394105514,1763286294729,-168.00546609,0.00014897,2]
[394105515,1763286295789,193.44757964,0.00014748,2]
[394105516,1763286434464,9806.56242036,0.00014359,2]
[394105517,1763286434485,10000.01,0.00014359,2]
[394105518,1763286434505,8363.78661724,0.00014359,2]
[394105520,1763286461636,10000.01,0.0001431,2]
[394105521,1763286461656,10000.01,0.0001431,2]
[394105522,1763286461677,10000.01,0.0001431,2]
[394105523,1763286464836,4339.222169,0.00014167,2]
[394105524,1763286466187,-239.79837371,0.0001431,2]
[394105525,1763286467917,-531.26706152,0.0001431,2]
[394105526,1763286471662,-248.72522566,0.0001431,2]
[394105527,1763286472859,3568.15673377,0.00014167,2]
[394105528,1763286475039,-284.11406408,0.0001431,2]
[394105529,1763286479328,-154.15334276,0.0001431,2]
[394105530,1763286481563,522.94237011,0.00014167,2]
[394105531,1763286481857,-188.66094234,0.0001431,2]
[394105532,1763286485369,-197.28475644,0.0001431,2]
[394105533,1763286487415,-229.53691335,0.0001431,2]
[394105534,1763286488948,-300.0,0.0001431,2]
[394105535,1763286489986,2495.21840249,0.00014167,2]
[394105536,1763286493637,-353.17046403,0.0001431,2]
[394105537,1763286495380,-151.51062978,0.0001431,2]
[394105538,1763286498069,1965.68148914,0.00014167,2]
[394105539,1763286498570,-625.44777549,0.0001431,2]
[394105540,1763286500174,-371.20125975,0.0001431,2]
[394105541,1763286503480,-251.72901037,0.0001431,2]
[394105542,1763286505116,-184.57899421,0.0001431,2]
[394105543,1763286517503,-28.04335551,0.0001431,2]
[394105544,1763286517526,-167.94335638,0.00014603,2]
[394105546,1763286544379,150.0,0.00032876,120]
[394105547,1763286562599,-342.75507721,0.00014503,2]
[394105548,1763286564098,-312.5951554,0.00014503,2]
[394105549,1763286565932,-173.70155009,0.00014503,2]
[394105550,1763286571850,-173.70155009,0.00014358,2]
[394105551,1763286573299,-284.71714984,0.00014358,2]
[394105552,1763286573320,-192.75440576,0.00014503,2]
[394105553,1763286575883,173.70155009,0.00014214,2]
[394105620,1763286633090,-91.96274408,0.00014503,2]
[394105621,1763286633099,-22.24943571,0.00014603,2]
[394105622,1763286633108,-156.82114245,0.00015051,2]
[394105623,1763286633117,-279.00772107,0.00015051,2]
[394105624,1763286633126,-502.21389792,0.00015051,2]
[394105625,1763286633136,-507.60428185,0.00015051,2]
[394105659,1763286638374,-385.22042557,0.000149,2]
[394105660,1763286638383,-385.22042557,0.00015051,2]
[394105661,1763286638392,-1200.0,0.00015108,2]
[394105662,1763286638401,-1200.0,0.00015109,2]
[394105663,1763286638410,-300.0,0.00015285,2]
[394105665,1763286638419,-300.0,0.00015285,2]
[394105666,1763286638428,-300.0,0.00015285,2]
[394105667,1763286638437,-300.0,0.00015285,2]
[394105668,1763286638446,-3750.21259419,0.00015286,2]
[394105669,1763286638456,-2250.50954869,0.00015314,2]
[394105670,1763286638465,-500.0,0.00015373,2]
[394105671,1763286638474,-500.0,0.00015373,2]
[394105672,1763286638483,-500.0,0.00015373,2]
[394105673,1763286638492,-500.0,0.00015373,2]
[394105674,1763286638501,-500.0,0.00015373,2]
[394105676,1763286638510,-500.0,0.00015373,2]
[394105677,1763286638519,-500.0,0.00015373,2]
[394105679,1763286638529,-500.0,0.00015373,2]
[394105681,1763286638538,-4396.26261569,0.00015392,2]
[394105682,1763286638547,-11803.0243469,0.00015403,2]
[394105684,1763286638556,-10000.0,0.00015492,2]
[394105686,1763286638566,-10000.0,0.00015492,2]
[394105688,1763286638575,-10000.0,0.00015492,2]
[394105691,1763286638585,-10000.0,0.00015492,2]
[394105692,1763286638594,-10000.0,0.00015492,2]
[394105694,1763286638603,-10000.0,0.00015492,2]
[394105697,1763286638613,-10000.0,0.00015492,2]
[394105698,1763286638622,-10000.0,0.00015492,2]
[394105700,1763286638632,-10000.0,0.00015492,2]
[394105702,1763286638641,-10000.0,0.00015492,2]
[394105704,1763286638651,-10000.0,0.00015492,2]
[394105707,1763286638661,-210.91759159,0.000155,2]
[394105708,1763286638670,-197.34855806,0.000155,2]
[394105710,1763286638679,-151.0,0.00015501,2]
[394105712,1763286638688,-151.0,0.00015501,2]
[394105714,1763286638698,-151.0,0.00015501,2]
[394105717,1763286638708,-151.0,0.00015501,2]
[394105718,1763286638717,-151.0,0.00015501,2]
[394105720,1763286638726,-1708.2317495,0.00015502,2]
[394105722,1763286638736,-500.0,0.00015509,2]
[394105724,1763286638745,-151.0,0.00015511,2]
[394105726,1763286638754,-151.0,0.00015511,2]
[394105728,1763286638764,-151.0,0.00015511,2]
[394105731,1763286638776,-173.81,0.00015571,2]
[394105733,1763286638787,-500.0,0.00015573,2]
[394105735,1763286638796,-495.18708248,0.00015573,2]
[394105737,1763286638806,-504.48044803,0.00015573,2]
[394105739,1763286638815,-500.0,0.00015573,2]
[394105740,1763286638824,-502.72992377,0.00015573,2]
[394105742,1763286638834,-500.0,0.00015573,2]
[394105745,1763286638844,-500.0,0.00015573,2]
[394105747,1763286638853,-501.19694939,0.00015573,2]
[394105748,1763286638864,-525.64377934,0.00015573,2]
[394105751,1763286638875,-500.0,0.00015573,2]
[394105752,1763286638885,-503.94670184,0.00015573,2]
[394105754,1763286638895,-500.0,0.00015573,2]
[394105756,1763286638906,-309.2220184,0.00015573,2]
[394105757,1763286638915,-487.33888497,0.00015573,2]
[394105758,1763286638925,-273.0,0.00015575,2]
[394105760,1763286638934,-1014.0,0.00015576,2]
[394105761,1763286638943,-273.0,0.0001559,2]
[394105762,1763286638953,-273.0,0.00015594,2]
[394105763,1763286638962,-151.0,0.000156,2]
[394105764,1763286638972,-151.0,0.000156,2]
[394105765,1763286638981,-273.0,0.00015613,2]
[394105766,1763286638992,-151.0,0.00015648,2]
[394105767,1763286639001,-151.0,0.00015648,2]
[394105768,1763286639010,-155.58809709,0.00015648,2]
[394105769,1763286639020,-273.0,0.00015671,2]
[394105770,1763286639030,-500.0,0.00015673,2]
[394105771,1763286639042,-500.0,0.00015673,2]
[394105772,1763286639051,-500.0,0.00015673,2]
[394105773,1763286639061,-157.33661567,0.00015673,2]
[394105774,1763286639070,-500.0,0.00015673,2]
[394105775,1763286639079,-500.0,0.00015673,2]
[394105776,1763286639089,-151.94637356,0.00015673,2]
[394105777,1763286639099,-151.0,0.00015673,2]
[394105778,1763286639108,-151.0,0.00015673,2]
[394105779,1763286639117,-152.25905184,0.00015673,2]
[394105780,1763286639127,-153.58163311,0.00015673,2]
[394105781,1763286639136,-151.0,0.00015673,2]
[394105782,1763286639146,-157.9294793,0.00015673,2]
[394105783,1763286639155,-151.0,0.00015673,2]
[394105784,1763286639165,-153.7110367,0.00015673,2]
[394105785,1763286639175,-152.98786739,0.00015673,2]
[394105786,1763286639184,-23095.07727633,0.00015746,2]
[394105787,1763286639195,-500.0,0.00015783,2]
[394105788,1763286639206,-151.0,0.00015785,2]
[394105789,1763286639215,-151.0,0.00015785,2]
[394105790,1763286639225,-151.0,0.0001581,2]
[394105791,1763286639234,-151.0,0.0001581,2]
[394105792,1763286639244,-151.0,0.0001581,2]
[394105793,1763286639253,-151.0,0.0001581,2]
[394105794,1763286639264,-311.41145966,0.00015843,2]
[394105795,1763286639274,-560.54062738,0.00015843,2]
[394105796,1763286639286,-996.51667091,0.00015843,2]
[394105797,1763286639295,-470.11409298,0.00015843,2]
[394105798,1763286639305,-846.20536736,0.00015843,2]
[394105799,1763286639315,-1504.36509753,0.00015843,2]
[394105800,1763286639325,-167.98980509,0.00015843,2]
[394105801,1763286639334,-302.38164916,0.00015843,2]
[394105802,1763286639343,-537.56737629,0.00015843,2]
[394105803,1763286639352,-238.42086614,0.00015843,2]
[394105804,1763286639361,-429.15755905,0.00015843,2]
[394105805,1763286639370,-762.94677165,0.00015843,2]
[394105806,1763286639380,-1014.0,0.00015878,2]
[394105807,1763286639389,-1014.0,0.00015898,2]
[394105808,1763286639398,-151.0,0.000159,2]
[394105809,1763286639407,-1000.0,0.00015921,2]
[394105810,1763286639416,-500.0,0.00015921,2]
[394105811,1763286639425,-1000.0,0.00015921,2]
[394105812,1763286639434,-1000.0,0.00015921,2]
[394105813,1763286639443,-1000.0,0.00015921,2]
[394105814,1763286639452,-507.28869421,0.00015921,2]
[394105815,1763286639461,-1017.78918519,0.00015921,2]
[394105816,1763286639470,-151.0,0.00015922,2]
[394105817,1763286639480,-151.0,0.00015922,2]
[394105818,1763286639489,-198.0,0.00015947,2]
[394105819,1763286639499,-151.0,0.00015947,2]
[394105820,1763286639508,-151.0,0.00015947,2]
[394105821,1763286639517,-151.0,0.00015947,2]
[394105822,1763286639526,-500.87843812,0.00015973,2]
[394105823,1763286639536,-555.91363623,0.00015973,2]
[394105824,1763286639545,-500.80544391,0.00015973,2]
[394105825,1763286639554,-429.60816672,0.00015973,2]
[394105826,1763286639564,-506.13490692,0.00015973,2]
[394105827,1763286639574,-500.0,0.00015973,2]
[394105828,1763286639583,-500.0,0.00015973,2]
[394105829,1763286639592,-1014.0,0.00015977,2]
[394105830,1763286639601,-1014.0,0.00015987,2]
[394105831,1763286639611,-100000.0,0.0001599,2]
[394105832,1763286639620,-279.9884853,0.00016012,2]
[394105833,1763286639630,-168.0,0.00016036,2]
[394105834,1763286639639,-500.0,0.00016057,2]
[394105835,1763286639649,-275.96094902,0.00016059,2]
[394105836,1763286639658,-197.98580188,0.00016059,2]
[394105837,1763286639667,-196.29720018,0.00016084,2]
[394105838,1763286639677,-151.0,0.00016084,2]
[394105839,1763286639686,-263.81695262,0.00016084,2]
[394105840,1763286639695,-1014.0,0.00016086,2]
[394105841,1763286639705,-384.28288228,0.00016121,2]
[394105842,1763286639714,-204.42006454,0.00016121,2]
[394105843,1763286639723,-508.57744471,0.00016121,2]
[394105844,1763286639732,-508.89375394,0.00016121,2]
[394105845,1763286639741,-1000.0,0.00016121,2]
[394105846,1763286639751,-319.98684034,0.00016186,2]
[394105847,1763286639760,-168.0,0.00016206,2]
[394105848,1763286639770,-236.86544388,0.00016221,2]
[394105849,1763286639779,-420.76566452,0.00016221,2]
[394105850,1763286639790,-281.22386963,0.00016221,2]
[394105851,1763286639799,-521.49466783,0.00016221,2]
[394105852,1763286639809,-1000.0,0.00016221,2]
[394105853,1763286639818,-155.01403394,0.00016221,2]
[394105854,1763286639827,-168.0,0.00016225,2]
[394105855,1763286639836,-168.0,0.00016312,2]
[394105856,1763286639845,-438.83392531,0.00016326,2]
[394105857,1763286639854,-422.67097124,0.00016331,2]
[394105858,1763286639864,-739.82813691,0.0001641,2]
[394105859,1763286639872,-500.0,0.00016438,2]
[394105860,1763286639882,-210.53001566,0.00016438,2]
[394105861,1763286639891,-1500.0,0.00016468,2]
[394105862,1763286639900,-1500.0,0.00016468,2]
[394105863,1763286639910,-1022.22373743,0.00016468,2]
[394105864,1763286639919,-1000.00213361,0.00016521,2]
[394105865,1763286639928,-232.53222757,0.00016521,2]
[394105866,1763286639938,-937.0,0.00016534,2]
[394105867,1763286639947,-224.42749466,0.00016603,2]
[394105868,1763286639956,-1680.0,0.00016617,2]
[394105869,1763286639966,-160.0,0.00016661,2]
[394105870,1763286639975,-1615.57379765,0.00016668,2]
[394105871,1763286639985,-637.23,0.00016708,2]
[394105872,1763286639994,-2149.0,0.00016708,2]
[394105874,1763286640003,-1020.646,0.00016708,2]
[394105875,1763286640014,-418.916,0.00016708,2]
[394105876,1763286640023,-420.0,0.00016724,2]
[394105877,1763286640033,-381.0,0.00016724,2]
[394105878,1763286640123,-1500.0,0.00016768,2]
[394105879,1763286640133,-1799.99999809,0.000168,2]
[394105880,1763286640143,-514.47484948,0.000168,2]
[394105881,1763286640153,-500.0,0.000168,2]
[394105882,1763286640163,-500.0,0.000168,2]
[394105883,1763286640174,-500.0,0.000168,2]
[394105884,1763286640184,-500.0,0.000168,2]
[394105885,1763286640195,-500.0,0.000168,2]
[394105886,1763286640206,-168.029,0.00016874,2]
[394105887,1763286640217,-500.0,0.00016973,2]
[394105888,1763286640228,-466.36156062,0.00016973,2]
[394105889,1763286640237,-500.0,0.00016973,2]
[394105890,1763286640247,-500.0,0.00016973,2]
[394105891,1763286640257,-501.36172632,0.00016973,2]
[394105893,1763286640266,-500.0,0.00016973,2]
[394105895,1763286640277,-294.2198355,0.00016998,2]
[394105897,1763286640289,-555.0,0.00016999,2]
[394105899,1763286640298,-32532.58170254,0.00017,2]
[394105901,1763286640307,-2000.0,0.00017016,2]
[394105902,1763286640316,-2000.0,0.00017016,2]
[394105903,1763286640326,-425.25856013,0.00017069,2]
[394105904,1763286640335,-500.0,0.00017106,2]
[394105906,1763286640345,-260.0,0.00017209,2]
[394105907,1763286640354,-422.27301222,0.00017223,2]
[394105908,1763286640363,-250.0,0.00017241,2]
[394105909,1763286640373,-250.0,0.00017241,2]
[394105910,1763286640382,-217.237,0.00017241,2]
[394105911,1763286640391,-152.828,0.00017241,2]
[394105912,1763286640400,-150.0,0.00017241,2]
[394105913,1763286640409,-185.344,0.00017241,2]
[394105914,1763286640420,-502.54686182,0.0001727,2]
[394105915,1763286640429,-2000.0,0.00017316,2]
[394105916,1763286640439,-511.0988563,0.00017348,2]
[394105917,1763286640448,-1014.48501785,0.00017348,2]
[394105918,1763286640458,-1000.0,0.00017348,2]
[394105919,1763286640468,-590.31238838,0.00017348,2]
[394105920,1763286640477,-647.15236361,0.00017348,2]
[394105921,1763286640487,-1437.39910531,0.00017375,2]
[394105922,1763286640496,-760.09142199,0.00017379,2]
[394105923,1763286640505,-895.42127443,0.00017384,2]
[394105924,1763286640515,-1000.0,0.00017521,2]
[394105925,1763286640525,-1000.0,0.00017521,2]
[394105926,1763286640537,-1000.0,0.00017521,2]
[394105927,1763286640546,-385.8616361,0.00017535,2]
[394105928,1763286640556,-1351.27363909,0.00017535,2]
[394105929,1763286640565,-2097.60473227,0.00017564,2]
[394105930,1763286640575,-2500.0,0.00017564,2]
[394105931,1763286640584,-11803.02434687,0.00017571,2]
[394105932,1763286640594,-267.68555508,0.00017672,2]
[394105933,1763286640603,-6654.49772731,0.00017708,2]
[394105934,1763286640613,-360.0,0.00017757,2]
[394105935,1763286640622,-1708.2317495,0.00017769,2]
[394105936,1763286640631,-685.45,0.00017808,2]
[394105937,1763286640640,-685.45,0.00017808,2]
[394105938,1763286640650,-685.45,0.00017808,2]
[394105939,1763286640660,-685.45,0.00017808,2]
[394105940,1763286640669,-685.45,0.00017808,2]
[394105941,1763286640679,-685.45,0.00017808,2]
[394105942,1763286640688,-685.45,0.00017808,2]
[394105943,1763286640699,-685.45,0.00017808,2]
[394105944,1763286640708,-685.45,0.00017808,2]
[394105945,1763286640717,-685.45,0.00017808,2]
[394105946,1763286640727,-685.45,0.00017808,2]
[394105947,1763286640736,-685.45,0.00017808,2]
[394105948,1763286640745,-685.45,0.00017808,2]
[394105949,1763286640755,-685.45,0.00017808,2]
[394105950,1763286640764,-685.45,0.00017808,2]
[394105951,1763286640773,-685.45,0.00017808,2]
[394105952,1763286640784,-685.45,0.00017808,2]
[394105953,1763286640794,-685.45,0.00017808,2]
[394105954,1763286640803,-685.45,0.00017808,2]
[394105955,1763286640813,-685.45,0.00017808,2]
[394105956,1763286640822,-685.45,0.00017808,2]
[394105957,1763286640831,-685.45,0.00017808,2]
[394105958,1763286640840,-685.45,0.00017808,2]
[394105959,1763286640850,-685.53068018,0.00017808,2]
[394105960,1763286640859,-404.8312337,0.00017863,2]
[394105961,1763286640868,-395.3305755,0.00017863,2]
[394105962,1763286640878,-395.2109804,0.00017863,2]
[394105963,1763286640887,-2500.0,0.00017864,2]
[394105964,1763286640896,-1500.0,0.00017896,2]